[Event "Early-Titled-Tuesday-Blitz-September-05-2023"]
[Site "Chess.com"]
[Date "2023.09.05"]
[Round "2"]
[White "Cheer_Down"]
[Black "Beltraxtor"]
[Result "1-0"]
[WhiteElo "2439"]
[BlackElo "2740"]
[TimeControl "180+1"]
[EndTime "8:17:47 PDT"]
[Termination "Cheer_Down won by resignation"]

1. e4 {[%clk 0:02:26.1]} 1... e5 {[%clk 0:02:51.1]} 2. Nf3 {[%clk 0:02:25.6]}
2... Nf6 {[%clk 0:02:51.8]} 3. Nxe5 {[%clk 0:02:24.5]} 3... d6 {[%clk
0:02:52.2]} 4. Nf3 {[%clk 0:02:23.4]} 4... Nxe4 {[%clk 0:02:52.8]} 5. Nc3 {[%clk
0:02:23.6]} 5... Nxc3 {[%clk 0:02:52.8]} 6. dxc3 {[%clk 0:02:22.9]} 6... Be7
{[%clk 0:02:53.7]} 7. Be3 {[%clk 0:02:19]} 7... O-O {[%clk 0:02:51.1]} 8. Qd2
{[%clk 0:02:13.7]} 8... Nd7 {[%clk 0:02:51.5]} 9. O-O-O {[%clk 0:02:11.4]} 9...
c6 {[%clk 0:02:52]} 10. Kb1 {[%clk 0:02:02.5]} 10... Nf6 {[%clk 0:02:48.9]} 11.
Bd3 {[%clk 0:01:59.7]} 11... d5 {[%clk 0:02:48.4]} 12. h3 {[%clk 0:01:54.6]}
12... Re8 {[%clk 0:02:31]} 13. g4 {[%clk 0:01:47.4]} 13... Bf8 {[%clk
0:02:24.1]} 14. Bg5 {[%clk 0:01:40.4]} 14... Bd7 {[%clk 0:02:06.7]} 15. Rhe1
{[%clk 0:01:38.3]} 15... Qc7 {[%clk 0:02:00.2]} 16. Bxf6 {[%clk 0:01:34.2]}
16... gxf6 {[%clk 0:02:01.1]} 17. Nd4 {[%clk 0:01:33.8]} 17... c5 {[%clk
0:01:26.8]} 18. Nf5 {[%clk 0:01:33.8]} 18... c4 {[%clk 0:01:26.8]} 19. Bf1
{[%clk 0:01:31.3]} 19... Bxf5 {[%clk 0:01:23.4]} 20. gxf5 {[%clk 0:01:30.8]}
20... b5 {[%clk 0:01:06.8]} 21. Bg2 {[%clk 0:01:28.9]} 21... Qh2 {[%clk
0:00:56.5]} 22. Bxd5 {[%clk 0:01:22.8]} 22... Rxe1 {[%clk 0:00:53.5]} 23. Qxe1
{[%clk 0:01:13.2]} 23... Rb8 {[%clk 0:00:51.5]} 24. Qg1+ {[%clk 0:01:11]} 24...
Qxg1 {[%clk 0:00:51.1]} 25. Rxg1+ {[%clk 0:01:11.9]} 25... Bg7 {[%clk
0:00:50.3]} 26. a3 {[%clk 0:01:07.8]} 26... Kf8 {[%clk 0:00:49.2]} 27. b4 {[%clk
0:01:03.2]} 27... Bh6 {[%clk 0:00:46.8]} 28. a4 {[%clk 0:00:56.8]} 28... Bd2
{[%clk 0:00:41.1]} 29. Rg3 {[%clk 0:00:54.3]} 29... a6 {[%clk 0:00:18.6]} 30.
axb5 {[%clk 0:00:52.3]} 30... axb5 {[%clk 0:00:18.7]} 31. Kb2 {[%clk 0:00:50.3]}
31... h5 {[%clk 0:00:14.8]} 32. Bc6 {[%clk 0:00:44.7]} 32... Bf4 {[%clk
0:00:14.1]} 33. Rg1 {[%clk 0:00:41.3]} 33... Rb6 {[%clk 0:00:13.9]} 34. Bf3
{[%clk 0:00:38.2]} 34... Rd6 {[%clk 0:00:09.2]} 35. Rd1 {[%clk 0:00:37.9]} 35...
Rb6 {[%clk 0:00:02]} 36. Bxh5 {[%clk 0:00:34.8]} 36... Be5 {[%clk 0:00:02.1]}
37. Bf3 {[%clk 0:00:31.6]} 37... Ra6 {[%clk 0:00:02.2]} 38. Rd7 {[%clk
0:00:28.8]} 38... Ra4 {[%clk 0:00:02]} 39. Bd5 {[%clk 0:00:19.1]} 39... Rxb4+
{[%clk 0:00:02.6]} 40. Kc1 {[%clk 0:00:19]} 40... Bxc3 {[%clk 0:00:03.5]} 41.
Rxf7+ {[%clk 0:00:18.7]} 41... Ke8 {[%clk 0:00:04]} 42. Rb7 {[%clk 0:00:17.7]}
42... Be5 {[%clk 0:00:03.1]} 43. Bc6+ {[%clk 0:00:17.6]} 43... Kd8 {[%clk
0:00:02.3]} 44. Rxb5 {[%clk 0:00:18.5]} 44... Ra4 {[%clk 0:00:02.6]} 45. Rd5+
{[%clk 0:00:16.5]} 45... Kc7 {[%clk 0:00:02.6]} 46. Bxa4 {[%clk 0:00:17.4]} 1-0

[Event "Early-Titled-Tuesday-Blitz-September-05-2023"]
[Site "Chess.com"]
[Date "2023.09.05"]
[Round "2"]
[White "knightinshiningarmour16"]
[Black "Manukyan_Artak"]
[Result "0-1"]
[WhiteElo "2114"]
[BlackElo "2452"]
[TimeControl "180+1"]
[EndTime "8:17:47 PDT"]
[Termination "Manukyan_Artak won by checkmate"]

1. d4 {[%clk 0:02:59.7]} 1... Nf6 {[%clk 0:02:10.2]} 2. c4 {[%clk 0:02:58.3]}
2... e6 {[%clk 0:02:10.1]} 3. Nc3 {[%clk 0:02:55.9]} 3... Bb4 {[%clk 0:02:07.8]}
4. Qc2 {[%clk 0:02:54.2]} 4... c5 {[%clk 0:02:07.2]} 5. dxc5 {[%clk 0:02:53.2]}
5... Qa5 {[%clk 0:02:06.6]} 6. Bd2 {[%clk 0:02:48.1]} 6... Qxc5 {[%clk 0:02:04]}
7. e3 {[%clk 0:02:27.1]} 7... O-O {[%clk 0:02:00.8]} 8. Bd3 {[%clk 0:02:23]}
8... d5 {[%clk 0:01:59.1]} 9. cxd5 {[%clk 0:01:59.2]} 9... exd5 {[%clk
0:01:56.4]} 10. a3 {[%clk 0:01:57.1]} 10... Bxc3 {[%clk 0:01:53.4]} 11. Bxc3
{[%clk 0:01:56.7]} 11... Nbd7 {[%clk 0:01:44.8]} 12. Ne2 {[%clk 0:01:18.3]}
12... Re8 {[%clk 0:01:39.9]} 13. O-O {[%clk 0:01:17.3]} 13... Ne4 {[%clk
0:01:36.1]} 14. Bd4 {[%clk 0:01:09.1]} 14... Qd6 {[%clk 0:01:18.8]} 15. Nc3
{[%clk 0:00:54.2]} 15... Ndf6 {[%clk 0:01:16.5]} 16. Rad1 {[%clk 0:00:37.9]}
16... Ng4 {[%clk 0:01:02.8]} 17. g3 {[%clk 0:00:33.4]} 17... Qh6 {[%clk
0:01:01.7]} 18. h4 {[%clk 0:00:27.1]} 18... Ngf6 {[%clk 0:00:25.9]} 19. Nxd5
{[%clk 0:00:18]} 19... Nxd5 {[%clk 0:00:24.4]} 20. Bxe4 {[%clk 0:00:17.7]} 20...
Nf6 {[%clk 0:00:25.1]} 21. Bg2 {[%clk 0:00:17]} 21... Bg4 {[%clk 0:00:24.5]} 22.
Rd2 {[%clk 0:00:16.8]} 22... Rac8 {[%clk 0:00:24]} 23. Qd1 {[%clk 0:00:16.5]}
23... Bxd1 {[%clk 0:00:23.8]} 24. Rfxd1 {[%clk 0:00:16.5]} 24... Ng4 {[%clk
0:00:22.3]} 25. Bxb7 {[%clk 0:00:16.4]} 25... Rcd8 {[%clk 0:00:22.1]} 26. Bg2
{[%clk 0:00:16.8]} 26... f6 {[%clk 0:00:18.6]} 27. Bc6 {[%clk 0:00:14.7]} 27...
Rf8 {[%clk 0:00:17.8]} 28. Bb5 {[%clk 0:00:14.3]} 28... Ne5 {[%clk 0:00:17.4]}
29. Bxe5 {[%clk 0:00:13.4]} 29... Rxd2 {[%clk 0:00:17.5]} 30. Rxd2 {[%clk
0:00:14.3]} 30... fxe5 {[%clk 0:00:17.8]} 31. Bc4+ {[%clk 0:00:15]} 31... Kh8
{[%clk 0:00:18]} 32. Rd5 {[%clk 0:00:15.2]} 32... Qf6 {[%clk 0:00:17.8]} 33. Rd2
{[%clk 0:00:14.4]} 33... Rd8 {[%clk 0:00:17.9]} 34. Rxd8+ {[%clk 0:00:14.2]}
34... Qxd8 {[%clk 0:00:18.8]} 35. Be2 {[%clk 0:00:14]} 35... Qd2 {[%clk
0:00:19.4]} 36. Bf3 {[%clk 0:00:14]} 36... Qxb2 {[%clk 0:00:20.3]} 37. a4 {[%clk
0:00:13.9]} 37... Qa3 {[%clk 0:00:21.2]} 38. Bc6 {[%clk 0:00:13.7]} 38... Qc1+
{[%clk 0:00:21.5]} 39. Kh2 {[%clk 0:00:14]} 39... Qxc6 {[%clk 0:00:22.4]} 40. f4
{[%clk 0:00:14.3]} 40... Qxa4 {[%clk 0:00:23.3]} 41. fxe5 {[%clk 0:00:13.9]}
41... Qe4 {[%clk 0:00:24.2]} 42. e6 {[%clk 0:00:14.4]} 42... Qxe6 {[%clk
0:00:24.5]} 43. g4 {[%clk 0:00:15.1]} 43... Qxe3 {[%clk 0:00:25.4]} 44. g5
{[%clk 0:00:15]} 44... a5 {[%clk 0:00:25.9]} 45. h5 {[%clk 0:00:15.8]} 45... a4
{[%clk 0:00:26.3]} 46. g6 {[%clk 0:00:16.7]} 46... hxg6 {[%clk 0:00:26.6]} 47.
hxg6 {[%clk 0:00:17.6]} 47... a3 {[%clk 0:00:27.4]} 48. Kg2 {[%clk 0:00:18.1]}
48... a2 {[%clk 0:00:27.9]} 49. Kh2 {[%clk 0:00:18.9]} 49... a1=Q {[%clk
0:00:28.4]} 50. Kg2 {[%clk 0:00:19.8]} 50... Qa2+ {[%clk 0:00:29]} 51. Kh1
{[%clk 0:00:20.3]} 51... Qc1# {[%clk 0:00:29.9]} 0-1

[Event "Early-Titled-Tuesday-Blitz-September-05-2023"]
[Site "Chess.com"]
[Date "2023.09.05"]
[Round "2"]
[White "CSB7"]
[Black "LUISMIGUELOV"]
[Result "1-0"]
[WhiteElo "2701"]
[BlackElo "2078"]
[TimeControl "180+1"]
[EndTime "8:17:48 PDT"]
[Termination "CSB7 won on time"]

1. d4 {[%clk 0:03:00.9]} 1... d5 {[%clk 0:02:59.2]} 2. Nf3 {[%clk 0:02:59.1]}
2... c6 {[%clk 0:02:58.9]} 3. c4 {[%clk 0:02:56]} 3... Bf5 {[%clk 0:02:57]} 4.
cxd5 {[%clk 0:02:55]} 4... cxd5 {[%clk 0:02:56.6]} 5. Qb3 {[%clk 0:02:53.3]}
5... Bc8 {[%clk 0:02:09]} 6. Nc3 {[%clk 0:02:49.6]} 6... e6 {[%clk 0:02:06.8]}
7. Bg5 {[%clk 0:02:22.5]} 7... Be7 {[%clk 0:02:03.1]} 8. Bxe7 {[%clk 0:02:22.5]}
8... Nxe7 {[%clk 0:02:01.7]} 9. e3 {[%clk 0:02:22.6]} 9... Nbc6 {[%clk
0:01:58.4]} 10. Bd3 {[%clk 0:02:12.7]} 10... O-O {[%clk 0:01:57.6]} 11. O-O
{[%clk 0:02:13.3]} 11... f5 {[%clk 0:01:43.9]} 12. Rac1 {[%clk 0:02:09.5]} 12...
Rb8 {[%clk 0:01:38.4]} 13. Qa3 {[%clk 0:01:54.3]} 13... Bd7 {[%clk 0:01:32.8]}
14. Ne2 {[%clk 0:01:37.5]} 14... Be8 {[%clk 0:01:29.8]} 15. Nf4 {[%clk
0:01:35.8]} 15... Qd7 {[%clk 0:01:24.5]} 16. Bb5 {[%clk 0:01:33.6]} 16... h6
{[%clk 0:01:18.1]} 17. Ne5 {[%clk 0:01:27.8]} 17... Qc8 {[%clk 0:01:08.5]} 18.
Bxc6 {[%clk 0:00:52.4]} 18... Nxc6 {[%clk 0:01:05.6]} 19. Nxc6 {[%clk
0:00:51.1]} 19... Bxc6 {[%clk 0:01:02.3]} 20. Ng6 {[%clk 0:00:50.8]} 20... Re8
{[%clk 0:00:37.2]} 21. Ne7+ {[%clk 0:00:50]} 21... Rxe7 {[%clk 0:00:37.6]} 22.
Qxe7 {[%clk 0:00:50.7]} 22... Qe8 {[%clk 0:00:32.1]} 23. Qxe8+ {[%clk
0:00:43.6]} 23... Rxe8 {[%clk 0:00:32]} 24. Rc5 {[%clk 0:00:42]} 24... Kf7
{[%clk 0:00:27.3]} 25. Rfc1 {[%clk 0:00:42.5]} 25... Ke7 {[%clk 0:00:25.7]} 26.
f3 {[%clk 0:00:41.5]} 26... Kd6 {[%clk 0:00:25.5]} 27. Kf2 {[%clk 0:00:42.1]}
27... g5 {[%clk 0:00:24.8]} 28. h4 {[%clk 0:00:41]} 28... g4 {[%clk 0:00:22.5]}
29. R5c3 {[%clk 0:00:33.7]} 29... h5 {[%clk 0:00:21.6]} 30. Kg3 {[%clk 0:00:31]}
30... Rf8 {[%clk 0:00:17.5]} 31. Kf4 {[%clk 0:00:31]} 31... Rg8 {[%clk
0:00:15.2]} 32. R3c2 {[%clk 0:00:22.7]} 32... Rg7 {[%clk 0:00:14.9]} 33. b3
{[%clk 0:00:22.9]} 33... a6 {[%clk 0:00:14.1]} 34. a4 {[%clk 0:00:22.4]} 34...
Rg8 {[%clk 0:00:14]} 35. Rb2 {[%clk 0:00:21.1]} 35... a5 {[%clk 0:00:11.1]} 36.
Rc5 {[%clk 0:00:19.3]} 36... Ra8 {[%clk 0:00:09.1]} 37. Kg5 {[%clk 0:00:17.9]}
37... b6 {[%clk 0:00:06.5]} 38. Rc1 {[%clk 0:00:14.2]} 38... Be8 {[%clk
0:00:05.3]} 39. Rbc2 {[%clk 0:00:14.1]} 39... Ra7 {[%clk 0:00:04.5]} 40. Rc8
{[%clk 0:00:13.8]} 40... Rg7+ {[%clk 0:00:03.5]} 41. Kf4 {[%clk 0:00:10]} 41...
Bd7 {[%clk 0:00:02]} 42. Rb8 {[%clk 0:00:09.9]} 1-0

[Event "Early-Titled-Tuesday-Blitz-September-05-2023"]
[Site "Chess.com"]
[Date "2023.09.05"]
[Round "2"]
[White "Vaathi_Coming"]
[Black "Mikhail_Golubev"]
[Result "1-0"]
[WhiteElo "2872"]
[BlackElo "2592"]
[TimeControl "180+1"]
[EndTime "8:17:50 PDT"]
[Termination "Vaathi_Coming won on time"]

1. b3 {[%clk 0:02:51.4]} 1... d6 {[%clk 0:02:59.3]} 2. Bb2 {[%clk 0:02:52]} 2...
Nd7 {[%clk 0:02:59.9]} 3. d4 {[%clk 0:02:51.5]} 3... Ngf6 {[%clk 0:02:59.8]} 4.
Nf3 {[%clk 0:02:51.3]} 4... g6 {[%clk 0:03:00.2]} 5. g3 {[%clk 0:02:51.2]} 5...
Bg7 {[%clk 0:03:00.7]} 6. Bg2 {[%clk 0:02:51.9]} 6... O-O {[%clk 0:03:00.9]} 7.
O-O {[%clk 0:02:52.5]} 7... a5 {[%clk 0:03:01]} 8. c4 {[%clk 0:02:43.3]} 8... a4
{[%clk 0:02:52.6]} 9. Na3 {[%clk 0:02:42.9]} 9... Re8 {[%clk 0:02:17.3]} 10. Qc2
{[%clk 0:02:37.8]} 10... e5 {[%clk 0:02:15.3]} 11. dxe5 {[%clk 0:02:37.2]} 11...
dxe5 {[%clk 0:02:15.5]} 12. Rad1 {[%clk 0:02:35.5]} 12... e4 {[%clk 0:02:12.5]}
13. Ng5 {[%clk 0:02:21.9]} 13... e3 {[%clk 0:01:57.1]} 14. f4 {[%clk 0:02:21.3]}
14... c6 {[%clk 0:01:53]} 15. c5 {[%clk 0:02:18.6]} 15... axb3 {[%clk
0:01:47.9]} 16. axb3 {[%clk 0:02:12.8]} 16... Qe7 {[%clk 0:01:39]} 17. b4 {[%clk
0:02:00.4]} 17... h6 {[%clk 0:01:33.3]} 18. Nf3 {[%clk 0:01:58.6]} 18... Ng4
{[%clk 0:00:44.3]} 19. Bxg7 {[%clk 0:01:55.6]} 19... Kxg7 {[%clk 0:00:38.9]} 20.
Nc4 {[%clk 0:01:55.2]} 20... Ndf6 {[%clk 0:00:38.8]} 21. Nd6 {[%clk 0:01:33.3]}
21... Rd8 {[%clk 0:00:38.6]} 22. Qb2 {[%clk 0:01:24.2]} 22... Nf2 {[%clk
0:00:32.4]} 23. Rd4 {[%clk 0:01:18.9]} 23... Nh3+ {[%clk 0:00:25.1]} 24. Bxh3
{[%clk 0:01:16.6]} 24... Bxh3 {[%clk 0:00:26]} 25. Rfd1 {[%clk 0:01:14.7]} 25...
Kh7 {[%clk 0:00:21.6]} 26. Ne5 {[%clk 0:01:03.5]} 26... Be6 {[%clk 0:00:21.1]}
27. Qb1 {[%clk 0:00:29.4]} 27... Nd5 {[%clk 0:00:18.5]} 28. Qd3 {[%clk
0:00:23.8]} 28... h5 {[%clk 0:00:09.6]} 29. Nf3 {[%clk 0:00:20.8]} 29... Kg7
{[%clk 0:00:09.1]} 30. f5 {[%clk 0:00:20.3]} 30... gxf5 {[%clk 0:00:06.6]} 31.
Nxf5+ {[%clk 0:00:20.1]} 31... Bxf5 {[%clk 0:00:06.4]} 32. Qxf5 {[%clk 0:00:21]}
32... Qf6 {[%clk 0:00:05.4]} 33. Qxh5 {[%clk 0:00:19.7]} 33... Rh8 {[%clk
0:00:06]} 34. Qg4+ {[%clk 0:00:19.4]} 34... Kf8 {[%clk 0:00:06.1]} 35. Rf1
{[%clk 0:00:12.7]} 35... Qg7 {[%clk 0:00:02.9]} 36. Qd7 {[%clk 0:00:09.2]} 36...
Nf6 {[%clk 0:00:02]} 37. Qxb7 {[%clk 0:00:07.6]} 37... Re8 {[%clk 0:00:02.6]}
38. Qxc6 {[%clk 0:00:06.7]} 38... Qh6 {[%clk 0:00:01.8]} 39. Rh4 {[%clk
0:00:05.1]} 1-0

[Event "Early-Titled-Tuesday-Blitz-September-05-2023"]
[Site "Chess.com"]
[Date "2023.09.05"]
[Round "2"]
[White "chito89"]
[Black "ejam94"]
[Result "1-0"]
[WhiteElo "2805"]
[BlackElo "2548"]
[TimeControl "180+1"]
[EndTime "8:17:52 PDT"]
[Termination "chito89 won by resignation"]

1. d4 {[%clk 0:03:00.9]} 1... Nf6 {[%clk 0:02:56.3]} 2. c4 {[%clk 0:02:59.9]}
2... g6 {[%clk 0:02:55.9]} 3. Nc3 {[%clk 0:02:58.7]} 3... Bg7 {[%clk 0:02:56.1]}
4. Nf3 {[%clk 0:02:57.4]} 4... O-O {[%clk 0:02:55.7]} 5. g3 {[%clk 0:02:57.3]}
5... d6 {[%clk 0:02:55.2]} 6. Bg2 {[%clk 0:02:56.8]} 6... Nbd7 {[%clk
0:02:55.6]} 7. O-O {[%clk 0:02:56.4]} 7... e5 {[%clk 0:02:55.5]} 8. e4 {[%clk
0:02:56.4]} 8... Re8 {[%clk 0:02:52.4]} 9. Re1 {[%clk 0:02:56.4]} 9... exd4
{[%clk 0:02:50.3]} 10. Nxd4 {[%clk 0:02:57.3]} 10... Nc5 {[%clk 0:02:50.7]} 11.
h3 {[%clk 0:02:55.9]} 11... Ne6 {[%clk 0:02:44.5]} 12. Be3 {[%clk 0:02:55]}
12... Nxd4 {[%clk 0:02:43.1]} 13. Bxd4 {[%clk 0:02:55.9]} 13... Nd7 {[%clk
0:02:43.2]} 14. f4 {[%clk 0:02:30.4]} 14... Bxd4+ {[%clk 0:01:58.2]} 15. Qxd4
{[%clk 0:02:31.3]} 15... Qf6 {[%clk 0:01:53]} 16. Qxf6 {[%clk 0:02:12.6]} 16...
Nxf6 {[%clk 0:01:53]} 17. e5 {[%clk 0:02:13.5]} 17... dxe5 {[%clk 0:01:46.6]}
18. fxe5 {[%clk 0:02:14.4]} 18... Nd7 {[%clk 0:01:45.1]} 19. Nd5 {[%clk
0:02:10.7]} 19... Rxe5 {[%clk 0:01:43.6]} 20. Rxe5 {[%clk 0:02:11.2]} 20... Nxe5
{[%clk 0:01:43.1]} 21. Re1 {[%clk 0:02:11.7]} 21... Nxc4 {[%clk 0:01:23.5]} 22.
Re8+ {[%clk 0:02:07.7]} 22... Kg7 {[%clk 0:01:23.5]} 23. b3 {[%clk 0:02:03]}
23... Nd6 {[%clk 0:01:21.1]} 24. Rd8 {[%clk 0:02:03.2]} 24... Rb8 {[%clk
0:00:29.6]} 25. Nxc7 {[%clk 0:02:00.2]} 25... Nf5 {[%clk 0:00:27.8]} 26. g4
{[%clk 0:01:50.2]} 26... Ne7 {[%clk 0:00:21.6]} 27. Ne8+ {[%clk 0:01:42.9]}
27... Kh6 {[%clk 0:00:19.2]} 28. h4 {[%clk 0:01:38.3]} 28... Nc6 {[%clk
0:00:17.2]} 29. Bxc6 {[%clk 0:01:34.2]} 29... bxc6 {[%clk 0:00:16.3]} 30. Nd6
{[%clk 0:01:27.6]} 30... Rb4 {[%clk 0:00:13.8]} 31. g5+ {[%clk 0:01:22.4]} 31...
Kh5 {[%clk 0:00:12.9]} 32. Rxc8 {[%clk 0:01:22.8]} 32... Kxh4 {[%clk 0:00:09.2]}
33. Nxf7 {[%clk 0:01:20.7]} 33... Rg4+ {[%clk 0:00:09.3]} 34. Kh2 {[%clk
0:01:21]} 34... Rf4 {[%clk 0:00:08.4]} 35. Rc7 {[%clk 0:01:19.1]} 35... Rf2+
{[%clk 0:00:08.4]} 36. Kg1 {[%clk 0:01:19.6]} 36... Rxa2 {[%clk 0:00:08.4]} 37.
Rxc6 {[%clk 0:01:07.8]} 37... a5 {[%clk 0:00:08.2]} 38. Rc4+ {[%clk 0:01:06.1]}
38... Kg3 {[%clk 0:00:08.2]} 39. Rc3+ {[%clk 0:01:06]} 39... Kg4 {[%clk
0:00:07.9]} 40. Kf1 {[%clk 0:01:03.7]} 40... Kf5 {[%clk 0:00:03.8]} 41. Rc5+
{[%clk 0:01:00.5]} 41... Kf4 {[%clk 0:00:04.3]} 42. Nd6 {[%clk 0:00:56.5]} 42...
a4 {[%clk 0:00:02.7]} 43. Rc4+ {[%clk 0:00:55.1]} 43... Kxg5 {[%clk 0:00:03.1]}
44. Rxa4 {[%clk 0:00:51.3]} 44... Rb2 {[%clk 0:00:03.7]} 45. Rb4 {[%clk
0:00:49.9]} 45... h5 {[%clk 0:00:03.6]} 46. Nc4 {[%clk 0:00:48.4]} 46... Rc2
{[%clk 0:00:01.9]} 47. Ne3 {[%clk 0:00:45.5]} 47... Rb2 {[%clk 0:00:02.1]} 48.
Ng2 {[%clk 0:00:42.5]} 48... Kf5 {[%clk 0:00:01.7]} 49. Nh4+ {[%clk 0:00:41.1]}
49... Kg5 {[%clk 0:00:01.9]} 50. Kg1 {[%clk 0:00:38.6]} 50... Kf6 {[%clk
0:00:01.2]} 51. Rb6+ {[%clk 0:00:38]} 51... Kg5 {[%clk 0:00:01.3]} 52. Nxg6
{[%clk 0:00:38]} 52... h4 {[%clk 0:00:01.7]} 53. Ne5 {[%clk 0:00:37.3]} 53...
Kf4 {[%clk 0:00:01.7]} 54. Nd3+ {[%clk 0:00:37.6]} 54... Kg3 {[%clk 0:00:02.3]}
55. Nxb2 {[%clk 0:00:38.5]} 1-0

[Event "Early-Titled-Tuesday-Blitz-September-05-2023"]
[Site "Chess.com"]
[Date "2023.09.05"]
[Round "2"]
[White "Just_Lucky_1"]
[Black "TanitoluwaAps116"]
[Result "0-1"]
[WhiteElo "2509"]
[BlackElo "2796"]
[TimeControl "180+1"]
[EndTime "8:17:53 PDT"]
[Termination "TanitoluwaAps116 won by resignation"]

1. e4 {[%clk 0:03:00.9]} 1... c5 {[%clk 0:02:59.3]} 2. Nf3 {[%clk 0:03:01.1]}
2... e6 {[%clk 0:02:59.4]} 3. d4 {[%clk 0:03:01.6]} 3... cxd4 {[%clk 0:03:00.3]}
4. Nxd4 {[%clk 0:03:02.5]} 4... Nc6 {[%clk 0:03:01]} 5. Nc3 {[%clk 0:03:03.1]}
5... Nf6 {[%clk 0:03:01.7]} 6. Ndb5 {[%clk 0:03:03]} 6... d6 {[%clk 0:03:01.9]}
7. Bf4 {[%clk 0:03:03.3]} 7... e5 {[%clk 0:03:02.1]} 8. Bg5 {[%clk 0:03:04.1]}
8... a6 {[%clk 0:03:02.7]} 9. Na3 {[%clk 0:03:04.7]} 9... b5 {[%clk 0:03:02.2]}
10. Nd5 {[%clk 0:03:05.3]} 10... Be7 {[%clk 0:03:02.8]} 11. Bxf6 {[%clk
0:03:06]} 11... Bxf6 {[%clk 0:03:03.2]} 12. c4 {[%clk 0:03:06.8]} 12... b4
{[%clk 0:03:03.3]} 13. Nc2 {[%clk 0:03:07.4]} 13... a5 {[%clk 0:03:03.4]} 14. g3
{[%clk 0:03:06.5]} 14... O-O {[%clk 0:03:00.8]} 15. Bg2 {[%clk 0:03:06.7]} 15...
Be6 {[%clk 0:02:59.4]} 16. O-O {[%clk 0:03:04]} 16... Bg5 {[%clk 0:02:52]} 17.
h4 {[%clk 0:02:58.5]} 17... Bh6 {[%clk 0:02:51]} 18. b3 {[%clk 0:02:51.6]} 18...
Qb8 {[%clk 0:02:28.6]} 19. Nde3 {[%clk 0:02:46.3]} 19... g6 {[%clk 0:02:10.9]}
20. f4 {[%clk 0:02:33.5]} 20... exf4 {[%clk 0:02:06.9]} 21. gxf4 {[%clk
0:02:34.4]} 21... Bg7 {[%clk 0:01:57.3]} 22. f5 {[%clk 0:02:33.4]} 22... Bd7
{[%clk 0:01:38.7]} 23. Nd5 {[%clk 0:02:31.6]} 23... Qd8 {[%clk 0:01:19.3]} 24.
f6 {[%clk 0:02:14.6]} 24... Bh6 {[%clk 0:01:18.8]} 25. Nd4 {[%clk 0:02:14.7]}
25... Re8 {[%clk 0:01:01]} 26. Nb5 {[%clk 0:01:38.3]} 26... Ne5 {[%clk
0:00:28.9]} 27. Nxd6 {[%clk 0:01:31.8]} 27... Bg4 {[%clk 0:00:26.4]} 28. Qd4
{[%clk 0:01:17.1]} 28... Re6 {[%clk 0:00:25.1]} 29. c5 {[%clk 0:01:15.4]} 29...
Nc6 {[%clk 0:00:17.9]} 30. Qd3 {[%clk 0:01:02.4]} 30... Bf8 {[%clk 0:00:09.9]}
31. Qg3 {[%clk 0:00:43.1]} 31... h5 {[%clk 0:00:09.9]} 32. e5 {[%clk 0:00:31.1]}
32... Nxe5 {[%clk 0:00:03.2]} 33. Ne7+ {[%clk 0:00:22.2]} 33... Kh7 {[%clk
0:00:03.5]} 34. Bxa8 {[%clk 0:00:20]} 34... Qxa8 {[%clk 0:00:04.4]} 35. Rae1
{[%clk 0:00:17.5]} 35... Nf3+ {[%clk 0:00:04.3]} 36. Rxf3 {[%clk 0:00:14.9]}
36... Rxe1+ {[%clk 0:00:04.4]} 37. Qxe1 {[%clk 0:00:15.7]} 37... Qxf3 {[%clk
0:00:03.6]} 38. Nxf7 {[%clk 0:00:15.4]} 38... Qxf6 {[%clk 0:00:02.3]} 39. Ng5+
{[%clk 0:00:15.1]} 39... Kg7 {[%clk 0:00:02.3]} 40. Nd5 {[%clk 0:00:13.3]} 40...
Bxc5+ {[%clk 0:00:02.1]} 41. Kg2 {[%clk 0:00:12.6]} 41... Qb2+ {[%clk
0:00:02.6]} 42. Kg3 {[%clk 0:00:10.3]} 42... Bd6+ {[%clk 0:00:02.7]} 43. Nf4
{[%clk 0:00:09.9]} 43... Qc3+ {[%clk 0:00:03.2]} 44. Qxc3+ {[%clk 0:00:09.5]}
44... bxc3 {[%clk 0:00:04.1]} 45. Kf2 {[%clk 0:00:06.3]} 45... Bxf4 {[%clk
0:00:04]} 46. Ne6+ {[%clk 0:00:06.9]} 46... Bxe6 {[%clk 0:00:04.5]} 0-1